[Event "Titled Tuesday Blitz February 07 Late 2023"]
[White "Marcolino, Daniel Mattos"]
[Black "Gerbelli Neto, Eduardo"]
[WhiteFideId "2106841"]
[BlackFideId "2103281"]
[WhiteElo "2006"]
[BlackElo "2114"]
[Result "0-1"]
[Round "03"]
[TimeControl "180+2"]
[Date "2023.02.07"]
[WhiteClock "0:00:01"]
[BlackClock "0:00:10"]

1. d4 {[%clk 0:03:00]}  d5 {[%clk 0:02:59]} 2. Nf3 {[%clk 0:02:59]}  Nf6 {[%clk 0:02:59]} 3. g3 {[%clk 0:02:59]}  b5 {[%clk 0:02:58]} 4. a4 {[%clk 0:02:58]}  b4 {[%clk 0:02:58]} 5. c4 {[%clk 0:02:58]}  dxc4 {[%clk 0:02:54]} 6. Nbd2 {[%clk 0:02:58]}  Ba6 {[%clk 0:02:51]} 7. Qc2 {[%clk 0:02:54]}  e6 {[%clk 0:02:28]} 8. Bg2 {[%clk 0:02:52]}  b3 {[%clk 0:02:23]} 9. Qd1 {[%clk 0:02:40]}  Nc6 {[%clk 0:02:07]} 10. O-O {[%clk 0:02:34]}  Rb8 {[%clk 0:02:01]} 11. e3 {[%clk 0:01:53]}  Be7 {[%clk 0:01:40]} 12. Qe2 {[%clk 0:01:51]}  O-O {[%clk 0:01:23]} 13. Rd1 {[%clk 0:01:21]}  Nb4 {[%clk 0:00:52]} 14. Ne5 {[%clk 0:01:13]}  c3 {[%clk 0:00:44]} 15. Ndc4 {[%clk 0:01:07]}  c2 {[%clk 0:00:36]} 16. Re1 {[%clk 0:01:00]}  Nfd5 {[%clk 0:00:23]} 17. e4 {[%clk 0:00:41]}  Nb6 {[%clk 0:00:20]} 18. Be3 {[%clk 0:00:41]}  Nxc4 {[%clk 0:00:19]} 19. Nxc4 {[%clk 0:00:41]}  Qe8 {[%clk 0:00:16]} 20. Bf1 {[%clk 0:00:41]}  Qd8 {[%clk 0:00:11]} 21. Qg4 {[%clk 0:00:40]}  Bf6 {[%clk 0:00:08]} 22. e5 {[%clk 0:00:40]}  Be7 {[%clk 0:00:08]} 23. Bh6 {[%clk 0:00:39]}  g6 {[%clk 0:00:08]} 24. Bxf8 {[%clk 0:00:39]}  Bxf8 {[%clk 0:00:09]} 25. h4 {[%clk 0:00:37]}  Qd5 {[%clk 0:00:08]} 26. Ne3 {[%clk 0:00:35]}  Qc6 {[%clk 0:00:07]} 27. Bg2 {[%clk 0:00:23]}  Qd7 {[%clk 0:00:06]} 28. Qf3 {[%clk 0:00:19]}  Nd5 {[%clk 0:00:05]} 29. Ng4 {[%clk 0:00:19]}  c5 {[%clk 0:00:03]} 30. Nf6+ {[%clk 0:00:17]}  Nxf6 {[%clk 0:00:02]} 31. exf6 {[%clk 0:00:18]}  cxd4 {[%clk 0:00:01]} 32. h5 {[%clk 0:00:16]}  d3 {[%clk 0:00:01]} 33. hxg6 {[%clk 0:00:15]}  hxg6 {[%clk 0:00:01]} 34. Qe3 {[%clk 0:00:14]}  d2 {[%clk 0:00:02]} 35. Rf1 {[%clk 0:00:13]}  Rd8 {[%clk 0:00:03]} 36. Bf3 {[%clk 0:00:12]}  d1=Q {[%clk 0:00:04]} 37. Bxd1 {[%clk 0:00:11]}  cxd1=Q {[%clk 0:00:04]} 38. Raxd1 {[%clk 0:00:11]}  Qxd1 {[%clk 0:00:04]} 39. Rxd1 {[%clk 0:00:11]}  Rxd1+ {[%clk 0:00:05]} 40. Kg2 {[%clk 0:00:12]}  Bb7+ {[%clk 0:00:06]} 41. f3 {[%clk 0:00:09]}  Rd5 {[%clk 0:00:05]} 42. Qxa7 {[%clk 0:00:07]}  Rd7 {[%clk 0:00:05]} 43. Qb6 {[%clk 0:00:06]}  Bd6 {[%clk 0:00:05]} 44. Kf2 {[%clk 0:00:04]}  Be5 {[%clk 0:00:05]} 45. a5 {[%clk 0:00:04]}  Bxf6 {[%clk 0:00:05]} 46. a6 {[%clk 0:00:04]}  Bxa6 {[%clk 0:00:06]} 47. Qxa6 {[%clk 0:00:03]}  Rd2+ {[%clk 0:00:07]} 48. Ke3 {[%clk 0:00:03]}  Rxb2 {[%clk 0:00:07]} 49. Qa8+ {[%clk 0:00:02]}  Kg7 {[%clk 0:00:08]} 50. g4 {[%clk 0:00:02]}  Rc2 {[%clk 0:00:09]} 51. Qb7 {[%clk 0:00:01]}  b2 {[%clk 0:00:10]} 52. g5 {[%clk 0:00:01]}  Bc3 {[%clk 0:00:09]} 53. Kd3 {[%clk 0:00:01]}  Rc1 {[%clk 0:00:10]} 0-1


[Site "https://www.chess.com"]

[Event "Titled Tuesday Blitz February 07 Late 2023"]
[White "Altun, Arda"]
[Black "Sabar, Ethmane Daouda"]
[WhiteFideId "34511580"]
[BlackFideId "19600097"]
[WhiteElo "2218"]
[BlackElo "2040"]
[Result "0-1"]
[Round "03"]
[TimeControl "180+2"]
[Date "2023.02.07"]
[WhiteClock "0:00:11"]
[BlackClock "0:00:29"]

1. e4 {[%clk 0:02:04]}  e5 {[%clk 0:02:58]} 2. Nf3 {[%clk 0:02:03]}  Nc6 {[%clk 0:02:58]} 3. d4 {[%clk 0:02:03]}  exd4 {[%clk 0:02:57]} 4. Nxd4 {[%clk 0:02:04]}  Nf6 {[%clk 0:02:57]} 5. Nxc6 {[%clk 0:02:04]}  bxc6 {[%clk 0:02:52]} 6. e5 {[%clk 0:02:01]}  Qe7 {[%clk 0:02:48]} 7. Qe2 {[%clk 0:01:59]}  Nd5 {[%clk 0:02:47]} 8. c4 {[%clk 0:01:59]}  Ba6 {[%clk 0:02:46]} 9. b3 {[%clk 0:01:58]}  g6 {[%clk 0:02:37]} 10. Qe4 {[%clk 0:01:51]}  f5 {[%clk 0:02:23]} 11. Qd4 {[%clk 0:01:44]}  Nb4 {[%clk 0:02:18]} 12. Na3 {[%clk 0:01:42]}  Bg7 {[%clk 0:02:10]} 13. Bb2 {[%clk 0:01:36]}  d6 {[%clk 0:02:03]} 14. f4 {[%clk 0:01:17]}  O-O {[%clk 0:01:41]} 15. O-O-O {[%clk 0:01:02]}  Nxa2+ {[%clk 0:01:34]} 16. Kb1 {[%clk 0:00:52]}  Nb4 {[%clk 0:01:35]} 17. exd6 {[%clk 0:00:48]}  cxd6 {[%clk 0:01:15]} 18. Qxd6 {[%clk 0:00:44]}  Qe4+ {[%clk 0:00:56]} 19. Bd3 {[%clk 0:00:25]}  Nxd3 {[%clk 0:00:50]} 20. Qxd3 {[%clk 0:00:26]}  Qxf4 {[%clk 0:00:41]} 21. Bxg7 {[%clk 0:00:19]}  Kxg7 {[%clk 0:00:42]} 22. Rhe1 {[%clk 0:00:19]}  c5 {[%clk 0:00:37]} 23. Qc3+ {[%clk 0:00:17]}  Kg8 {[%clk 0:00:31]} 24. Rd7 {[%clk 0:00:15]}  Rf7 {[%clk 0:00:28]} 25. Rxf7 {[%clk 0:00:10]}  Kxf7 {[%clk 0:00:29]} 26. Rd1 {[%clk 0:00:11]}  Qe4+ {[%clk 0:00:29]} 27. Ka1 {[%clk 0:00:10]}  Re8 {[%clk 0:00:27]} 28. Rd7+ {[%clk 0:00:09]}  Re7 {[%clk 0:00:28]} 29. Rxe7+ {[%clk 0:00:09]}  Qxe7 {[%clk 0:00:29]} 30. Qh8 {[%clk 0:00:10]}  Qf6+ {[%clk 0:00:29]} 31. Qxf6+ {[%clk 0:00:10]}  Kxf6 {[%clk 0:00:30]} 32. Kb2 {[%clk 0:00:10]}  Bb7 {[%clk 0:00:31]} 33. Nb5 {[%clk 0:00:10]}  Bxg2 {[%clk 0:00:30]} 34. Nd6 {[%clk 0:00:11]}  f4 {[%clk 0:00:29]} 35. Kc3 {[%clk 0:00:11]}  f3 {[%clk 0:00:29]} 36. Kd2 {[%clk 0:00:11]}  f2 {[%clk 0:00:29]} 0-1


[Site "https://www.chess.com"]

[Event "Titled Tuesday Blitz February 07 Late 2023"]
[White "Capp, Stephen"]
[Black "Nunez V, Gustavo Eduardo"]
[WhiteFideId "2027089"]
[BlackFideId "4403690"]
[WhiteElo "1920"]
[BlackElo "2212"]
[Result "0-1"]
[Round "03"]
[TimeControl "180+2"]
[Date "2023.02.07"]
[WhiteClock "0:00:16"]
[BlackClock "0:00:24"]

1. e4 {[%clk 0:03:00]}  c5 {[%clk 0:02:56]} 2. a3 {[%clk 0:02:59]}  g6 {[%clk 0:02:55]} 3. Nc3 {[%clk 0:02:57]}  Bg7 {[%clk 0:02:55]} 4. Bc4 {[%clk 0:02:57]}  Nc6 {[%clk 0:02:54]} 5. h4 {[%clk 0:02:55]}  h6 {[%clk 0:02:53]} 6. f4 {[%clk 0:02:53]}  e5 {[%clk 0:02:47]} 7. h5 {[%clk 0:02:48]}  g5 {[%clk 0:02:34]} 8. fxg5 {[%clk 0:02:43]}  Qxg5 {[%clk 0:02:33]} 9. Nf3 {[%clk 0:02:32]}  Qxg2 {[%clk 0:02:32]} 10. Rg1 {[%clk 0:02:32]}  Qh3 {[%clk 0:02:29]} 11. Rxg7 {[%clk 0:02:28]}  Nf6 {[%clk 0:02:25]} 12. Nd5 {[%clk 0:02:06]}  Nxe4 {[%clk 0:02:15]} 13. Qe2 {[%clk 0:01:58]}  Ng3 {[%clk 0:02:07]} 14. Qh2 {[%clk 0:01:44]}  Qxh2 {[%clk 0:02:02]} 15. Nxh2 {[%clk 0:01:43]}  Nxh5 {[%clk 0:02:03]} 16. Rg2 {[%clk 0:01:33]}  Kd8 {[%clk 0:02:03]} 17. d3 {[%clk 0:01:28]}  d6 {[%clk 0:01:59]} 18. Nf3 {[%clk 0:01:26]}  f5 {[%clk 0:01:45]} 19. Bd2 {[%clk 0:01:23]}  e4 {[%clk 0:01:44]} 20. dxe4 {[%clk 0:01:22]}  fxe4 {[%clk 0:01:45]} 21. Nh4 {[%clk 0:01:18]}  Bh3 {[%clk 0:01:44]} 22. Rg1 {[%clk 0:01:09]}  Ne5 {[%clk 0:01:42]} 23. O-O-O {[%clk 0:01:08]}  Nxc4 {[%clk 0:01:42]} 24. Bc3 {[%clk 0:01:08]}  Re8 {[%clk 0:01:36]} 25. b3 {[%clk 0:01:05]}  Nxa3 {[%clk 0:01:29]} 26. Ne3 {[%clk 0:01:01]}  Nb5 {[%clk 0:01:25]} 27. Bb2 {[%clk 0:00:56]}  Kc7 {[%clk 0:01:24]} 28. Nhf5 {[%clk 0:00:55]}  Bxf5 {[%clk 0:01:20]} 29. Nxf5 {[%clk 0:00:55]}  Rg8 {[%clk 0:01:20]} 30. c4 {[%clk 0:00:49]}  Nf4 {[%clk 0:00:54]} 31. Rxg8 {[%clk 0:00:46]}  Rxg8 {[%clk 0:00:55]} 32. cxb5 {[%clk 0:00:45]}  Nd3+ {[%clk 0:00:53]} 33. Kb1 {[%clk 0:00:42]}  Rg2 {[%clk 0:00:50]} 34. Bc1 {[%clk 0:00:37]}  h5 {[%clk 0:00:50]} 35. Rh1 {[%clk 0:00:35]}  Rf2 {[%clk 0:00:45]} 36. Ne3 {[%clk 0:00:34]}  Kb6 {[%clk 0:00:33]} 37. Nc4+ {[%clk 0:00:32]}  Kxb5 {[%clk 0:00:32]} 38. Nxd6+ {[%clk 0:00:32]}  Kb4 {[%clk 0:00:31]} 39. Nxe4 {[%clk 0:00:32]}  Re2 {[%clk 0:00:29]} 40. Nd2 {[%clk 0:00:29]}  Kc3 {[%clk 0:00:25]} 41. Rxh5 {[%clk 0:00:25]}  Nxc1 {[%clk 0:00:20]} 42. Rxc5+ {[%clk 0:00:18]}  Kxd2 {[%clk 0:00:18]} 43. Rxc1 {[%clk 0:00:18]}  Re1 {[%clk 0:00:18]} 44. Rxe1 {[%clk 0:00:17]}  Kxe1 {[%clk 0:00:19]} 45. Kb2 {[%clk 0:00:17]}  Kd2 {[%clk 0:00:19]} 46. b4 {[%clk 0:00:17]}  b5 {[%clk 0:00:18]} 47. Kb3 {[%clk 0:00:17]}  Kd3 {[%clk 0:00:19]} 48. Kb2 {[%clk 0:00:16]}  Kc4 {[%clk 0:00:20]} 49. Ka3 {[%clk 0:00:15]}  Kc3 {[%clk 0:00:20]} 50. Ka2 {[%clk 0:00:15]}  Kxb4 {[%clk 0:00:21]} 51. Kb2 {[%clk 0:00:15]}  a5 {[%clk 0:00:22]} 52. Ka2 {[%clk 0:00:15]}  a4 {[%clk 0:00:23]} 53. Kb2 {[%clk 0:00:15]}  Ka5 {[%clk 0:00:24]} 54. Ka3 {[%clk 0:00:15]}  b4+ {[%clk 0:00:25]} 55. Ka2 {[%clk 0:00:15]}  Kb5 {[%clk 0:00:26]} 56. Kb2 {[%clk 0:00:15]}  Kc4 {[%clk 0:00:27]} 57. Ka2 {[%clk 0:00:16]}  Kc3 {[%clk 0:00:27]} 58. Ka1 {[%clk 0:00:16]}  a3 {[%clk 0:00:26]} 59. Ka2 {[%clk 0:00:17]}  b3+ {[%clk 0:00:24]} 60. Kb1 {[%clk 0:00:17]}  b2 {[%clk 0:00:23]} 61. Ka2 {[%clk 0:00:16]}  Kc2 {[%clk 0:00:24]} 0-1


[Site "https://www.chess.com"]

[Event "Titled Tuesday Blitz February 07 Late 2023"]
[White "Souza, Gustavo Horokoski De"]
[Black "Alfaro, William"]
[WhiteFideId "2146584"]
[BlackFideId "6100457"]
[WhiteElo "1943"]
[BlackElo "2134"]
[Result "0-1"]
[Round "03"]
[TimeControl "180+2"]
[Date "2023.02.07"]
[WhiteClock "0:00:01"]
[BlackClock "0:00:52"]

1. d4 {[%clk 0:02:24]}  Nf6 {[%clk 0:02:58]} 2. c4 {[%clk 0:02:24]}  e5 {[%clk 0:02:57]} 3. dxe5 {[%clk 0:02:23]}  Ng4 {[%clk 0:02:57]} 4. Bf4 {[%clk 0:02:19]}  Nc6 {[%clk 0:02:57]} 5. Nf3 {[%clk 0:02:19]}  Bb4+ {[%clk 0:02:55]} 6. Nbd2 {[%clk 0:02:18]}  Qe7 {[%clk 0:02:55]} 7. e3 {[%clk 0:02:16]}  Ngxe5 {[%clk 0:02:53]} 8. Nxe5 {[%clk 0:02:15]}  Nxe5 {[%clk 0:02:53]} 9. a3 {[%clk 0:02:14]}  Bd6 {[%clk 0:02:52]} 10. b4 {[%clk 0:02:10]}  c6 {[%clk 0:02:52]} 11. c5 {[%clk 0:02:05]}  Bc7 {[%clk 0:02:52]} 12. Be2 {[%clk 0:02:03]}  d5 {[%clk 0:02:51]} 13. cxd6 {[%clk 0:01:50]}  Bxd6 {[%clk 0:02:50]} 14. Ne4 {[%clk 0:01:22]}  Bc7 {[%clk 0:02:49]} 15. O-O {[%clk 0:01:18]}  Bf5 {[%clk 0:02:46]} 16. Nc5 {[%clk 0:01:13]}  Rb8 {[%clk 0:02:35]} 17. Qa4 {[%clk 0:01:08]}  a6 {[%clk 0:02:34]} 18. Rac1 {[%clk 0:01:01]}  O-O {[%clk 0:02:32]} 19. Rfd1 {[%clk 0:00:58]}  h6 {[%clk 0:02:19]} 20. Bf1 {[%clk 0:00:53]}  Ng4 {[%clk 0:02:13]} 21. Bxc7 {[%clk 0:00:50]}  Qxc7 {[%clk 0:02:14]} 22. g3 {[%clk 0:00:46]}  Qe7 {[%clk 0:01:53]} 23. Bg2 {[%clk 0:00:42]}  Rfd8 {[%clk 0:01:33]} 24. Rxd8+ {[%clk 0:00:41]}  Rxd8 {[%clk 0:01:34]} 25. Rd1 {[%clk 0:00:40]}  h5 {[%clk 0:01:16]} 26. Rxd8+ {[%clk 0:00:38]}  Qxd8 {[%clk 0:01:17]} 27. Nxb7 {[%clk 0:00:38]}  Qd2 {[%clk 0:01:17]} 28. Qxa6 {[%clk 0:00:23]}  Qxf2+ {[%clk 0:01:11]} 29. Kh1 {[%clk 0:00:23]}  Nxe3 {[%clk 0:00:56]} 30. Qa8+ {[%clk 0:00:01]}  Kh7 {[%clk 0:00:52]} 0-1


[Site "https://www.chess.com"]

[Event "Titled Tuesday Blitz February 07 Late 2023"]
[White "Todev, Simeon"]
[Black "Desideri, Ricardo Maruchi"]
[WhiteFideId "2925133"]
[BlackFideId "2110440"]
[WhiteElo "2033"]
[BlackElo "1959"]
[Result "1-0"]
[Round "03"]
[TimeControl "180+2"]
[Date "2023.02.07"]
[WhiteClock "0:01:19"]
[BlackClock "0:00:39"]

1. e4 {[%clk 0:02:59]}  c5 {[%clk 0:02:58]} 2. Nf3 {[%clk 0:02:55]}  d6 {[%clk 0:02:59]} 3. d4 {[%clk 0:02:56]}  cxd4 {[%clk 0:02:58]} 4. Nxd4 {[%clk 0:02:55]}  Nf6 {[%clk 0:02:59]} 5. Nc3 {[%clk 0:02:52]}  a6 {[%clk 0:02:59]} 6. f3 {[%clk 0:02:51]}  e6 {[%clk 0:03:00]} 7. Be3 {[%clk 0:02:51]}  b5 {[%clk 0:03:00]} 8. Be2 {[%clk 0:02:50]}  Bb7 {[%clk 0:03:00]} 9. Qd2 {[%clk 0:02:50]}  Nbd7 {[%clk 0:03:00]} 10. O-O-O {[%clk 0:02:50]}  Rc8 {[%clk 0:02:59]} 11. g4 {[%clk 0:02:50]}  Nb6 {[%clk 0:02:57]} 12. g5 {[%clk 0:02:49]}  Nfd7 {[%clk 0:02:57]} 13. f4 {[%clk 0:02:49]}  Qc7 {[%clk 0:02:48]} 14. f5 {[%clk 0:02:39]}  Nc5 {[%clk 0:02:36]} 15. g6 {[%clk 0:02:27]}  hxg6 {[%clk 0:02:29]} 16. fxe6 {[%clk 0:02:18]}  fxe6 {[%clk 0:02:27]} 17. Bg4 {[%clk 0:02:13]}  b4 {[%clk 0:02:21]} 18. Nb1 {[%clk 0:01:55]}  Nxe4 {[%clk 0:02:17]} 19. Qd3 {[%clk 0:01:40]}  Bd5 {[%clk 0:01:21]} 20. Nxe6 {[%clk 0:01:24]}  Bxe6 {[%clk 0:00:39]} 21. Bxe6 {[%clk 0:01:19]} 1-0


[Site "https://www.chess.com"]

[Event "Titled Tuesday Blitz February 07 Late 2023"]
[White "Mohammadian, Mohammad"]
[Black "Malicka, Maria"]
[WhiteFideId "12566055"]
[BlackFideId "1197576"]
[WhiteElo "1398"]
[BlackElo "2255"]
[Result "1/2-1/2"]
[Round "03"]
[TimeControl "180+2"]
[Date "2023.02.07"]
[WhiteClock "0:00:27"]
[BlackClock "0:01:09"]

1. e4 {[%clk 0:02:56]}  c5 {[%clk 0:02:59]} 2. Nf3 {[%clk 0:02:55]}  d6 {[%clk 0:03:00]} 3. d4 {[%clk 0:02:55]}  cxd4 {[%clk 0:03:01]} 4. Nxd4 {[%clk 0:02:55]}  Nf6 {[%clk 0:03:01]} 5. Nc3 {[%clk 0:02:54]}  a6 {[%clk 0:03:02]} 6. Be2 {[%clk 0:02:53]}  e6 {[%clk 0:03:01]} 7. Be3 {[%clk 0:02:53]}  Be7 {[%clk 0:03:01]} 8. O-O {[%clk 0:02:52]}  Qc7 {[%clk 0:03:01]} 9. f4 {[%clk 0:02:50]}  b5 {[%clk 0:03:00]} 10. a3 {[%clk 0:02:49]}  Bb7 {[%clk 0:03:00]} 11. Bd3 {[%clk 0:02:39]}  Nc6 {[%clk 0:02:59]} 12. Nxc6 {[%clk 0:02:38]}  Qxc6 {[%clk 0:02:59]} 13. Qe2 {[%clk 0:02:24]}  Rd8 {[%clk 0:02:56]} 14. Rad1 {[%clk 0:02:17]}  d5 {[%clk 0:02:52]} 15. exd5 {[%clk 0:02:16]}  Nxd5 {[%clk 0:02:50]} 16. Nxd5 {[%clk 0:02:16]}  exd5 {[%clk 0:02:31]} 17. Bd4 {[%clk 0:02:06]}  Qh6 {[%clk 0:02:18]} 18. Qg4 {[%clk 0:01:53]}  O-O {[%clk 0:02:12]} 19. Rf3 {[%clk 0:01:45]}  Bf6 {[%clk 0:02:09]} 20. Bxf6 {[%clk 0:01:38]}  Qxf6 {[%clk 0:02:05]} 21. Rh3 {[%clk 0:01:32]}  g6 {[%clk 0:02:05]} 22. f5 {[%clk 0:01:26]}  Bc8 {[%clk 0:02:01]} 23. Rf1 {[%clk 0:01:15]}  Kh8 {[%clk 0:01:41]} 24. Rhf3 {[%clk 0:01:04]}  gxf5 {[%clk 0:01:35]} 25. Bxf5 {[%clk 0:01:03]}  Bxf5 {[%clk 0:01:36]} 26. Qxf5 {[%clk 0:01:03]}  Qxb2 {[%clk 0:01:36]} 27. Qf6+ {[%clk 0:01:01]}  Qxf6 {[%clk 0:01:36]} 28. Rxf6 {[%clk 0:01:01]}  Rc8 {[%clk 0:01:35]} 29. R1f2 {[%clk 0:00:51]}  a5 {[%clk 0:01:33]} 30. Rd6 {[%clk 0:00:50]}  Rc5 {[%clk 0:01:32]} 31. Ra6 {[%clk 0:00:47]}  a4 {[%clk 0:01:29]} 32. Rd6 {[%clk 0:00:45]}  Rfc8 {[%clk 0:01:21]} 33. Rd7 {[%clk 0:00:35]}  Rxc2 {[%clk 0:01:13]} 34. Rfxf7 {[%clk 0:00:33]}  Ra2 {[%clk 0:01:11]} 35. h3 {[%clk 0:00:31]}  Kg8 {[%clk 0:01:12]} 36. Rg7+ {[%clk 0:00:29]}  Kf8 {[%clk 0:01:11]} 37. Rgf7+ {[%clk 0:00:29]}  Kg8 {[%clk 0:01:11]} 38. Rg7+ {[%clk 0:00:29]}  Kh8 {[%clk 0:01:09]} 39. Rxh7+ {[%clk 0:00:28]}  Kg8 {[%clk 0:01:09]} 40. Rhg7+ {[%clk 0:00:27]}  Kh8 {[%clk 0:01:09]} 41. Rh7+ {[%clk 0:00:27]}  Kg8 {[%clk 0:01:09]} 42. Rhg7+ {[%clk 0:00:27]}  Kh8 {[%clk 0:01:09]} 43. Rh7+ {[%clk 0:00:27]} 1/2-1/2


[Site "https://www.chess.com"]

[Event "Titled Tuesday Blitz February 07 Late 2023"]
[White "Zhigalko, Sergei"]
[Black "Andreikin, Dmitry"]
[WhiteFideId "13502956"]
[BlackFideId "4158814"]
[WhiteElo "2572"]
[BlackElo "2729"]
[Result "0-1"]
[Round "04"]
[TimeControl "180+2"]
[Date "2023.02.07"]
[WhiteClock "0:00:01"]
[BlackClock "0:00:17"]

1. e4 {[%clk 0:03:00]}  Nc6 {[%clk 0:02:55]} 2. Nf3 {[%clk 0:03:01]}  e5 {[%clk 0:02:49]} 3. Bb5 {[%clk 0:03:01]}  Nge7 {[%clk 0:02:48]} 4. O-O {[%clk 0:03:00]}  g6 {[%clk 0:02:47]} 5. c3 {[%clk 0:03:01]}  d6 {[%clk 0:02:47]} 6. d4 {[%clk 0:03:01]}  Bd7 {[%clk 0:02:47]} 7. Re1 {[%clk 0:03:00]}  Bg7 {[%clk 0:02:47]} 8. dxe5 {[%clk 0:02:45]}  Nxe5 {[%clk 0:02:47]} 9. Bxd7+ {[%clk 0:02:44]}  Qxd7 {[%clk 0:02:39]} 10. Nxe5 {[%clk 0:02:44]}  Bxe5 {[%clk 0:02:39]} 11. Nd2 {[%clk 0:02:42]}  Bg7 {[%clk 0:02:35]} 12. Nf3 {[%clk 0:02:40]}  Nc6 {[%clk 0:02:34]} 13. Bf4 {[%clk 0:02:36]}  O-O-O {[%clk 0:02:28]} 14. Qa4 {[%clk 0:02:21]}  Rhe8 {[%clk 0:02:16]} 15. Rad1 {[%clk 0:02:19]}  Qg4 {[%clk 0:02:07]} 16. Bg5 {[%clk 0:01:56]}  f6 {[%clk 0:01:53]} 17. h3 {[%clk 0:01:56]}  Qd7 {[%clk 0:01:37]} 18. Be3 {[%clk 0:01:46]}  a6 {[%clk 0:01:37]} 19. Qc2 {[%clk 0:01:32]}  g5 {[%clk 0:01:30]} 20. a4 {[%clk 0:01:12]}  g4 {[%clk 0:01:29]} 21. hxg4 {[%clk 0:01:09]}  Qxg4 {[%clk 0:01:29]} 22. Bc1 {[%clk 0:00:43]}  Rg8 {[%clk 0:01:23]} 23. Nh2 {[%clk 0:00:40]}  Qg6 {[%clk 0:01:23]} 24. Rd3 {[%clk 0:00:31]}  Bh6 {[%clk 0:01:09]} 25. Rg3 {[%clk 0:00:28]}  Qh5 {[%clk 0:01:10]} 26. Nf1 {[%clk 0:00:17]}  Ne5 {[%clk 0:01:04]} 27. Bxh6 {[%clk 0:00:14]}  Qxh6 {[%clk 0:00:56]} 28. Qb3 {[%clk 0:00:14]}  Rxg3 {[%clk 0:00:28]} 29. Nxg3 {[%clk 0:00:11]}  Kb8 {[%clk 0:00:29]} 30. Qe6 {[%clk 0:00:06]}  Nd3 {[%clk 0:00:29]} 31. Rb1 {[%clk 0:00:03]}  Nxf2 {[%clk 0:00:24]} 32. Qf5 {[%clk 0:00:01]}  Nd3 {[%clk 0:00:19]} 33. Qf3 {[%clk 0:00:02]}  Ne5 {[%clk 0:00:19]} 34. Qf2 {[%clk 0:00:01]}  Ng4 {[%clk 0:00:18]} 35. Qf3 {[%clk 0:00:01]}  Qh2+ {[%clk 0:00:17]} 36. Kf1 {[%clk 0:00:02]}  Rg8 {[%clk 0:00:16]} 37. Ne2 {[%clk 0:00:01]}  Qh1+ {[%clk 0:00:16]} 38. Ng1 {[%clk 0:00:01]}  Nh2+ {[%clk 0:00:17]} 0-1


[Site "https://www.chess.com"]

[Event "Titled Tuesday Blitz February 07 Late 2023"]
[White "Duda, Jan-Krzysztof"]
[Black "Bacrot, Etienne"]
[WhiteFideId "1170546"]
[BlackFideId "605506"]
[WhiteElo "2724"]
[BlackElo "2667"]
[Result "0-1"]
[Round "04"]
[TimeControl "180+2"]
[Date "2023.02.07"]
[WhiteClock "0:00:01"]
[BlackClock "0:00:06"]

1. d4 {[%clk 0:03:00]}  d5 {[%clk 0:02:58]} 2. Bg5 {[%clk 0:03:00]}  h6 {[%clk 0:02:58]} 3. Bh4 {[%clk 0:03:00]}  c5 {[%clk 0:02:58]} 4. c3 {[%clk 0:02:51]}  Nf6 {[%clk 0:02:52]} 5. Bxf6 {[%clk 0:02:43]}  gxf6 {[%clk 0:02:47]} 6. dxc5 {[%clk 0:02:36]}  e5 {[%clk 0:02:47]} 7. b4 {[%clk 0:02:35]}  a5 {[%clk 0:02:47]} 8. e3 {[%clk 0:02:35]}  Nc6 {[%clk 0:02:35]} 9. Bb5 {[%clk 0:02:34]}  f5 {[%clk 0:02:32]} 10. Nf3 {[%clk 0:02:32]}  Bg7 {[%clk 0:02:29]} 11. O-O {[%clk 0:02:02]}  O-O {[%clk 0:02:25]} 12. Qd2 {[%clk 0:02:01]}  axb4 {[%clk 0:01:38]} 13. cxb4 {[%clk 0:02:02]}  e4 {[%clk 0:01:39]} 14. Nd4 {[%clk 0:02:02]}  Nxd4 {[%clk 0:01:39]} 15. exd4 {[%clk 0:02:03]}  f4 {[%clk 0:01:38]} 16. Rd1 {[%clk 0:02:01]}  Qg5 {[%clk 0:01:36]} 17. Nc3 {[%clk 0:01:58]}  Ra3 {[%clk 0:01:27]} 18. Bf1 {[%clk 0:01:47]}  Bg4 {[%clk 0:00:42]} 19. Nb5 {[%clk 0:01:44]}  e3 {[%clk 0:00:18]} 20. Qb2 {[%clk 0:01:09]}  exf2+ {[%clk 0:00:16]} 21. Qxf2 {[%clk 0:01:10]}  Re3 {[%clk 0:00:15]} 22. Rd2 {[%clk 0:01:03]}  Rfe8 {[%clk 0:00:15]} 23. Nd6 {[%clk 0:01:01]}  R8e7 {[%clk 0:00:14]} 24. b5 {[%clk 0:00:48]}  f3 {[%clk 0:00:14]} 25. b6 {[%clk 0:00:13]}  Re2 {[%clk 0:00:14]} 26. Rxe2 {[%clk 0:00:14]}  fxe2 {[%clk 0:00:15]} 27. c6 {[%clk 0:00:12]}  Qd2 {[%clk 0:00:12]} 28. Kh1 {[%clk 0:00:02]}  Bxd4 {[%clk 0:00:12]} 29. Qg3 {[%clk 0:00:01]}  exf1=Q+ {[%clk 0:00:12]} 30. Rxf1 {[%clk 0:00:01]}  Qe2 {[%clk 0:00:07]} 31. Qf4 {[%clk 0:00:01]}  Be5 {[%clk 0:00:06]} 0-1


[Site "https://www.chess.com"]